lending/lending_fUSD_20251018
["ID","MTS","AMOUNT","RATE_DAILY","PERIOD"]
[391756807,1760783448267,-429.215635,0.0003239,30]
[391756808,1760783448276,-151.0,0.0003239,30]
[391756809,1760783448285,-429.215635,0.0003239,30]
[391756810,1760783448294,-429.215635,0.0003239,30]
[391756811,1760783448304,-986.485657,0.0003239,30]
[391756812,1760783448313,-429.215635,0.0003239,30]
[391756813,1760783448323,-151.0,0.0003239,30]
[391756814,1760783448333,-151.0,0.0003239,30]
[391756815,1760783448342,-986.485657,0.0003239,30]
[391756816,1760783448352,-986.485657,0.0003239,30]
[391756817,1760783448361,-481.205569,0.0003239,30]
[391756818,1760783448370,-986.485657,0.0003239,30]
[391756819,1760783448380,-481.205569,0.0003239,30]
[391756820,1760783448389,-481.205569,0.0003239,30]
[391756821,1760783448398,-481.205569,0.0003239,30]
[391756822,1760783448408,-151.0,0.0003239,30]
[391756823,1760783448417,-151.0,0.0003239,30]
[391756824,1760783448426,-151.0,0.0003239,30]
[391756825,1760783448435,-302.605318,0.0003239,30]
[391756826,1760783448445,-151.0,0.0003239,30]
[391756827,1760783448454,-302.605318,0.0003239,30]
[391756828,1760783448463,-816.881632,0.0003239,30]
[391756829,1760783448473,-302.605318,0.0003239,30]
[391756830,1760783448483,-151.0,0.0003239,30]
[391756831,1760783448492,-816.881632,0.0003239,30]
[391756832,1760783448501,-302.605318,0.0003239,30]
[391756833,1760783448510,-816.881632,0.0003239,30]
[391756834,1760783448519,-816.881632,0.0003239,30]
[391756835,1760783448528,-271.762661,0.0003239,30]
[391756836,1760783448538,-271.762661,0.0003239,30]
[391756837,1760783448547,-271.762661,0.0003239,30]
[391756838,1760783448556,-151.0,0.0003239,30]
[391756839,1760783448566,-271.762661,0.0003239,30]
[391756840,1760783448575,-275.72162,0.0003239,30]
[391756841,1760783448584,-151.0,0.0003239,30]
[391756842,1760783448593,-151.0,0.0003239,30]
[391756843,1760783448602,-151.0,0.0003239,30]
[391756844,1760783448611,-192.613416,0.0003239,30]
[391756845,1760783448620,-300.0,0.0003239,10]
[391756846,1760783448632,-151.0,0.0003239,30]
[391756847,1760783448641,-433.213607,0.0003239,30]
[391756848,1760783448650,-151.0,0.0003239,30]
[391756849,1760783448659,-433.213607,0.0003239,30]
[391756850,1760783448669,-151.0,0.0003239,30]
[391756851,1760783448679,-1568.809876,0.0003239,30]
[391756852,1760783448688,-433.213607,0.0003239,30]
[391756853,1760783448698,-151.0,0.0003239,30]
[391756854,1760783448709,-1568.809876,0.0003239,30]
[391756855,1760783448719,-433.213607,0.0003239,30]
[391756856,1760783448728,-1568.809876,0.0003239,30]
[391756857,1760783448737,-151.0,0.0003239,30]
[391756858,1760783448747,-2569.577058,0.0003239,30]
[391756859,1760783448756,-1568.809876,0.0003239,30]
[391756860,1760783448767,-2569.577058,0.0003239,30]
[391756861,1760783448777,-151.0,0.0003239,30]
[391756862,1760783448786,-2569.577058,0.0003239,30]
[391756863,1760783448796,-2569.577058,0.0003239,30]
[391756864,1760783448806,-151.0,0.0003239,30]
[391756865,1760783448816,-151.0,0.0003239,30]
[391756866,1760783448825,-157.712413,0.0003239,30]
[391756867,1760783448835,-151.0,0.0003239,30]
[391756868,1760783448844,-292.436263,0.0003239,30]
[391756869,1760783448854,-157.712413,0.0003239,30]
[391756870,1760783448863,-151.0,0.0003239,30]
[391756871,1760783448873,-157.712413,0.0003239,30]
[391756872,1760783448882,-1850.0,0.00032391,5]
[391756873,1760783448892,-181000.0,0.00032391,30]
[391756874,1760783448902,-151.0,0.00032391,30]
[391756875,1760783448912,-151.0,0.00032391,14]
[391756876,1760783448922,-151.0,0.00032391,30]
[391756877,1760783448931,-151.0,0.00032391,30]
[391756878,1760783448940,-151.0,0.00032391,30]
[391756879,1760783448950,-151.573179,0.00032391,30]
[391756880,1760783448959,-151.0,0.00032391,30]
[391756881,1760783448969,-151.0,0.00032391,30]
[391756882,1760783448979,-151.0,0.00032391,30]
[391756883,1760783448989,-151.0,0.00032391,30]
[391756884,1760783448999,-151.0,0.00032391,30]
[391756885,1760783449008,-151.0,0.00032391,30]
[391756886,1760783449018,-151.0,0.00032391,30]
[391756887,1760783449027,-151.0,0.00032391,30]
[391756888,1760783449036,-151.0,0.00032391,30]
[391756889,1760783449047,-151.0,0.00032391,30]
[391756890,1760783449056,-151.0,0.00032391,15]
[391756891,1760783449066,-151.0,0.00032391,15]
[391756892,1760783449076,-151.0,0.00032391,30]
[391756893,1760783449085,-151.0,0.00032391,15]
[391756894,1760783449095,-151.0,0.00032391,30]
[391756895,1760783449105,-223.489552,0.00032391,30]
[391756896,1760783449115,-274.941832,0.00032391,30]
[391756897,1760783449126,-166.058218,0.00032391,30]
[391756898,1760783449136,-223.489552,0.00032391,30]
[391756899,1760783449146,-223.489552,0.00032391,30]
[391756900,1760783449156,-223.489552,0.00032391,30]
[391756901,1760783449165,-151.0,0.00032391,30]
[391756902,1760783449175,-151.0,0.00032391,30]
[391756903,1760783449184,-151.0,0.00032391,30]
[391756904,1760783449194,-151.0,0.00032391,30]
[391756905,1760783449205,-151.0,0.00032391,30]
[391756906,1760783449216,-151.0,0.00032391,30]
[391756907,1760783449227,-151.0,0.00032391,30]
[391756908,1760783449368,-151.0,0.00032391,30]
[391756909,1760783449379,-151.0,0.00032391,30]
[391756910,1760783449388,-151.0,0.00032391,30]
[391756911,1760783449398,-151.0,0.00032391,30]
[391756912,1760783449407,-152.255797,0.00032391,30]
[391756913,1760783449416,-151.0,0.00032391,30]
[391756914,1760783449425,-151.0,0.00032391,30]
[391756915,1760783449435,-151.0,0.00032391,30]
[391756916,1760783449444,-453.128823,0.00032391,30]
[391756917,1760783449453,-453.128823,0.00032391,30]
[391756918,1760783449462,-839.585667,0.00032391,30]
[391756919,1760783449471,-151.0,0.00032391,30]
[391756920,1760783449480,-453.128823,0.00032391,30]
[391756921,1760783449488,-839.585667,0.00032391,30]
[391756922,1760783449498,-151.0,0.00032391,30]
[391756923,1760783449507,-151.0,0.00032391,30]
[391756924,1760783449516,-453.128823,0.00032391,30]
[391756925,1760783449525,-839.585667,0.00032391,30]
[391756926,1760783449534,-839.585667,0.00032391,30]
[391756927,1760783449544,-151.0,0.00032391,30]
[391756928,1760783449553,-151.0,0.00032391,30]
[391756929,1760783449562,-151.0,0.00032391,30]
[391756930,1760783449571,-151.0,0.00032391,30]
[391756931,1760783449580,-241.794797,0.00032391,30]
[391756932,1760783449589,-151.0,0.00032391,30]
[391756933,1760783449598,-151.0,0.00032391,30]
[391756934,1760783449609,-151.0,0.00032391,30]
[391756935,1760783449619,-151.0,0.00032391,30]
[391756936,1760783449631,-151.0,0.00032391,30]
[391756937,1760783449643,-151.0,0.00032391,30]
[391756938,1760783449653,-151.0,0.00032391,30]
[391756939,1760783449661,-151.0,0.00032391,30]
[391756940,1760783449671,-151.0,0.00032391,30]
[391756941,1760783449680,-151.0,0.00032391,30]
[391756942,1760783449689,-151.0,0.00032391,30]
[391756943,1760783449699,-151.0,0.00032391,30]
[391756944,1760783449710,-151.0,0.00032391,30]
[391756945,1760783449719,-170.650981,0.00032391,30]
[391756946,1760783449728,-289.139432,0.00032391,30]
[391756947,1760783449737,-289.139432,0.00032391,30]
[391756948,1760783449746,-196.435603,0.00032391,30]
[391756949,1760783449755,-289.139432,0.00032391,30]
[391756950,1760783449764,-289.139432,0.00032391,30]
[391756951,1760783449774,-151.0,0.00032391,30]
[391756952,1760783449783,-456.454265,0.00032391,30]
[391756953,1760783449793,-456.454265,0.00032391,30]
[391756954,1760783449803,-456.454265,0.00032391,30]
[391756955,1760783449812,-438.479682,0.00032391,30]
[391756956,1760783449821,-456.454265,0.00032391,30]
[391756957,1760783449830,-151.0,0.00032391,30]
[391756958,1760783449839,-438.479682,0.00032391,30]
[391756959,1760783449848,-438.479682,0.00032391,30]
[391756960,1760783449857,-438.479682,0.00032391,30]
[391756961,1760783449867,-151.0,0.00032391,30]
[391756962,1760783449876,-151.0,0.00032391,30]
[391756963,1760783449885,-151.0,0.00032391,30]
[391756964,1760783449896,-151.0,0.00032391,30]
[391756965,1760783449906,-151.0,0.00032391,30]
[391756966,1760783449915,-624.911121,0.00032391,30]
[391756967,1760783449924,-151.0,0.00032391,30]
[391756968,1760783449934,-454.535305,0.00032391,30]
[391756969,1760783449943,-624.911121,0.00032391,30]
[391756970,1760783449953,-454.535305,0.00032391,30]
[391756971,1760783449962,-624.911121,0.00032391,30]
[391756972,1760783449972,-454.535305,0.00032391,30]
[391756973,1760783449981,-624.911121,0.00032391,30]
[391756974,1760783449991,-725.096038,0.00032391,30]
[391756975,1760783450000,-454.535305,0.00032391,30]
[391756976,1760783450010,-725.096038,0.00032391,30]
[391756977,1760783450022,-725.096038,0.00032391,30]
[391756978,1760783450033,-725.09604,0.00032391,30]
[391756979,1760783450043,-682.035154,0.00032391,30]
[391756980,1760783450055,-682.035154,0.00032391,30]
[391756981,1760783450063,-682.035154,0.00032391,30]
[391756982,1760783450072,-682.035164,0.00032391,30]
[391756983,1760783450081,-223.635187,0.00032391,30]
[391756984,1760783450090,-151.0,0.00032391,30]
[391756985,1760783450099,-223.635187,0.00032391,30]
[391756986,1760783450108,-223.635187,0.00032391,30]
[391756987,1760783450117,-223.635193,0.00032391,30]
[391756988,1760783450126,-168.01467,0.00032391,30]
[391756989,1760783450135,-168.01467,0.00032391,30]
[391756990,1760783450144,-168.01467,0.00032391,30]
[391756991,1760783450153,-792.211336,0.00032391,30]
[391756992,1760783450162,-168.014674,0.00032391,30]
[391756993,1760783450172,-792.211336,0.00032391,30]
[391756994,1760783450183,-792.211336,0.00032391,30]
[391756995,1760783450192,-792.211329,0.00032391,30]
[391756996,1760783450203,-151.0,0.00032391,20]
[391756997,1760783450215,-151.0,0.00032391,30]
[391756998,1760783450225,-318.307455,0.00032391,30]
[391756999,1760783450236,-318.307455,0.00032391,30]
[391757000,1760783450245,-318.307455,0.00032391,30]
[391757001,1760783450255,-318.307454,0.00032391,30]
[391757002,1760783450265,-151.0,0.00032391,30]
[391757003,1760783450273,-429.215635,0.00032391,30]
[391757004,1760783450283,-151.0,0.00032391,30]
[391757005,1760783450292,-429.215635,0.00032391,30]
[391757006,1760783450301,-429.215635,0.00032391,30]
[391757007,1760783450311,-986.485657,0.00032391,30]
[391757008,1760783450320,-429.215635,0.00032391,30]
[391757009,1760783450329,-153.12278,0.00032391,30]
[391757010,1760783450338,-986.485657,0.00032391,30]
[391757011,1760783450347,-986.485657,0.00032391,30]
[391757012,1760783450356,-481.205569,0.00032391,30]
[391757013,1760783450365,-986.485657,0.00032391,30]
[391757014,1760783450375,-481.205569,0.00032391,30]
[391757015,1760783450384,-481.205569,0.00032391,30]
[391757016,1760783450393,-481.205569,0.00032391,30]
[391757017,1760783450402,-151.0,0.00032391,30]
[391757018,1760783450412,-151.0,0.00032391,30]
[391757019,1760783450421,-151.0,0.00032391,30]
[391757020,1760783450430,-302.605318,0.00032391,30]
[391757021,1760783450439,-151.0,0.00032391,30]
[391757022,1760783450448,-302.605318,0.00032391,30]
[391757023,1760783450458,-816.881632,0.00032391,30]
[391757024,1760783450467,-302.605318,0.00032391,30]
[391757025,1760783450476,-151.0,0.00032391,30]
[391757026,1760783450485,-816.881632,0.00032391,30]
[391757027,1760783450494,-302.605318,0.00032391,30]
[391757028,1760783450504,-816.881632,0.00032391,30]
[391757029,1760783450513,-816.881632,0.00032391,30]
[391757030,1760783450522,-271.762661,0.00032391,30]
[391757031,1760783450532,-271.762661,0.00032391,30]
[391757032,1760783450541,-271.762661,0.00032391,30]
[391757033,1760783450550,-151.0,0.00032391,30]
[391757034,1760783450559,-271.762661,0.00032391,30]
[391757035,1760783450568,-151.0,0.00032391,30]
[391757036,1760783450578,-151.0,0.00032391,30]
[391757037,1760783450587,-151.0,0.00032391,30]
[391757038,1760783450596,-151.0,0.00032391,30]
[391757039,1760783450605,-433.213607,0.00032391,30]
[391757040,1760783450614,-151.0,0.00032391,30]
[391757041,1760783450624,-433.213607,0.00032391,30]
[391757042,1760783450637,-151.0,0.00032391,30]
[391757043,1760783450646,-1568.809876,0.00032391,30]
[391757044,1760783450655,-433.213607,0.00032391,30]
[391757045,1760783450664,-151.0,0.00032391,30]
[391757046,1760783450675,-1568.809876,0.00032391,30]
[391757047,1760783450684,-433.21361,0.00032391,30]
[391757048,1760783450694,-1568.809876,0.00032391,30]
[391757049,1760783450703,-151.0,0.00032391,30]
[391757050,1760783450715,-2569.577058,0.00032391,30]
[391757051,1760783450724,-1568.80987,0.00032391,30]
[391757052,1760783450734,-2569.577058,0.00032391,30]
[391757053,1760783450744,-261.155936,0.00032391,30]
[391757054,1760783450753,-2569.577058,0.00032391,30]
[391757055,1760783450762,-2569.577057,0.00032391,30]
[391757056,1760783450772,-157.712413,0.00032391,30]
[391757057,1760783450781,-151.0,0.00032391,30]
[391757058,1760783450791,-157.712413,0.00032391,30]
[391757059,1760783450800,-151.0,0.00032391,30]
[391757060,1760783450809,-151.0,0.00032391,30]
[391757061,1760783450819,-157.712413,0.00032391,30]
[391757062,1760783450828,-387.26263806,0.00032392,2]
[391757063,1760783450837,-300.0,0.00032399,10]
[391757064,1760783450847,-442.48878763,0.00032399,15]
[391757065,1760783450857,-657.92929977,0.00032399,15]
[391757066,1760783450866,-349.66345052,0.00032399,15]
[391757067,1760783450876,-533.07876662,0.00032399,17]
[391757068,1760783450886,-500.0,0.00032399,17]
[391757069,1760783450895,-500.0,0.00032399,17]
[391757070,1760783450904,-500.0,0.00032399,17]
[391757071,1760783450914,-500.0,0.00032399,17]
[391757072,1760783450923,-319.95081928,0.00032399,17]
[391757073,1760783450932,-150.0,0.00032399,20]
[391757074,1760783450942,-999.0,0.00032399,120]
[391757075,1760783450951,-150.0,0.00032399,2]
[391757076,1760783450962,-200.0,0.000324,2]
[391757077,1760783450972,-200.0,0.000324,2]
[391757078,1760783450982,-204.2928508,0.000324,2]
[391757079,1760783450991,-150.0,0.000324,2]
[391757080,1760783451000,-500.0,0.000324,2]
[391757081,1760783451009,-500.0,0.000324,2]
[391757082,1760783451019,-250.0,0.000324,2]
[391757083,1760783451029,-150.0,0.000324,2]
[391757084,1760783451038,-200.0,0.000324,2]
[391757085,1760783451048,-569608.32202053,0.000324,4]
[391757093,1760783651065,-272.56,0.00013699,2]
[391757259,1760784631588,-500.0,0.00014999,2]
[391757260,1760784631598,-166.0,0.00014999,2]
[391757261,1760784631610,-334.0,0.00014999,2]
[391757262,1760784631620,-64.91000001,0.00016499,2]
[391757263,1760784631641,-235.08999999,0.00016499,2]
[391757264,1760784631651,-500.0,0.00016499,2]
[391757265,1760784631660,-250.0,0.00016499,2]
[391757266,1760784631671,-250.0,0.00017,2]
[391757267,1760784631680,-272.56,0.00020187,2]
[391757268,1760784631689,-158.88883048,0.00020899,2]
[391757269,1760784631700,-250.0,0.00020999,2]
[391757270,1760784631709,-3305.32760841,0.00022,2]
[391757271,1760784631718,-1200.0,0.00022199,2]
[391757272,1760784631727,-3305.32760841,0.000222,2]
[391757273,1760784631737,-300.0,0.00022399,2]
[391757274,1760784631746,-296.0,0.00022399,2]
[391757275,1760784631755,-3305.32760841,0.000224,2]
[391757276,1760784631774,-3305.32760841,0.000226,2]
[391757277,1760784631784,-3305.32760841,0.000229,2]
[391757278,1760784631794,-3305.32760841,0.000231,2]
[391757279,1760784631803,-3305.32760841,0.000233,2]
[391757280,1760784631814,-3305.32760841,0.000235,2]
[391757281,1760784631823,-3305.32760841,0.000238,2]
[391757282,1760784631834,-3305.32760841,0.00024,2]
[391757283,1760784631844,-548.0,0.00024231,2]
[391757284,1760784631854,-158.88883048,0.00024805,2]
[391757285,1760784631863,-500.0,0.00024932,2]
[391757286,1760784631873,-500.0,0.00024932,2]
[391757287,1760784631883,-500.0,0.00024932,2]
[391757288,1760784631893,-272.56,0.00026676,2]
[391757289,1760784631902,-657.768,0.00026762,14]
[391757291,1760784631913,-2442.99,0.0002818,2]
[391757292,1760784631923,-500.0,0.000282,5]
[391757293,1760784631932,-500.0,0.000282,5]
[391757294,1760784631943,-697.21,0.00028486,120]
[391757295,1760784631953,-150.0,0.00028486,2]
[391757296,1760784631963,-4517.21,0.00028642,2]
[391757297,1760784631972,-5000.0,0.00028647,2]
[391757298,1760784631982,-158.88883048,0.00028711,2]
[391757299,1760784631992,-1000.0,0.00028748,5]
[391757300,1760784632002,-1211.91,0.00028811,2]
[391757302,1760784632011,-277.35679052,0.00029144,2]
[391757303,1760784632021,-250.0,0.0002928,7]
[391757304,1760784632031,-150.0,0.00029293,7]
[391757306,1760784632040,-150.0,0.00029293,7]
[391757308,1760784632049,-150.0,0.00029293,7]
[391757309,1760784632060,-160.82492808,0.00029293,7]
[391757310,1760784632069,-295.57131539,0.00029293,7]
[391757311,1760784632079,-155.18142051,0.00029293,7]
[391757312,1760784632088,-242.4183284,0.00029293,7]
[391757313,1760784632098,-263.46958762,0.00029293,7]
[391757314,1760784632108,-234.92925555,0.00029293,7]
[391757315,1760784632119,-1500.0,0.00029296,5]
[391757316,1760784632129,-184.26,0.00029409,30]
[391757317,1760784632139,-166.66,0.00029566,2]
[391757318,1760784632153,-2000.0,0.00029844,5]
[391757319,1760784632163,-254.45,0.00029926,2]
[391757320,1760784632173,-2500.0,0.00030392,5]
[391757321,1760784632183,-287.61899177,0.00030513,2]
[391757322,1760784632193,-166.66,0.00030542,2]
[391757323,1760784632203,-2500.0,0.0003094,5]
[391757324,1760784632212,-1001.16536981,0.00031,2]
[391757325,1760784632222,-190.88,0.00031178,91]
[391757326,1760784632231,-166.66,0.00031518,2]
[391757327,1760784632240,-500.0,0.00031632,7]
[391757328,1760784632249,-500.0,0.00031632,7]
[391757329,1760784632258,-500.0,0.00031632,7]
[391757330,1760784632267,-500.0,0.00031632,7]
[391757331,1760784632276,-500.0,0.00031632,7]
[391757332,1760784632285,-500.0,0.00031632,7]
[391757333,1760784632294,-500.0,0.00031632,7]
[391757334,1760784632303,-500.0,0.00031632,7]
[391757335,1760784632313,-500.0,0.00031632,7]
[391757336,1760784632322,-264.7,0.00031632,7]
[391757337,1760784632331,-500.0,0.00031632,7]
[391757338,1760784632340,-500.0,0.00031632,7]
[391757339,1760784632349,-500.0,0.00031632,7]
[391757340,1760784632359,-500.0,0.00031632,7]
[391757341,1760784632368,-500.0,0.00031632,7]
[391757342,1760784632377,-500.0,0.00031632,7]
[391757343,1760784632386,-500.0,0.00031632,7]
[391757344,1760784632395,-500.0,0.00031632,7]
[391757345,1760784632404,-500.0,0.00031632,7]
[391757346,1760784632413,-500.0,0.00031632,7]
[391757347,1760784632423,-500.0,0.00031632,7]
[391757348,1760784632432,-500.0,0.00031632,7]
[391757349,1760784632441,-500.0,0.00031632,7]
[391757350,1760784632451,-500.0,0.00031632,7]
[391757351,1760784632461,-500.0,0.00031632,7]
[391757352,1760784632470,-500.0,0.00031632,7]
[391757353,1760784632479,-500.0,0.00031632,7]
[391757354,1760784632489,-500.0,0.00031632,7]
[391757355,1760784632498,-500.0,0.00031632,7]
[391757356,1760784632508,-500.0,0.00031632,7]
[391757357,1760784632517,-500.0,0.00031632,7]
[391757358,1760784632530,-500.0,0.00031632,7]
[391757359,1760784632539,-500.0,0.00031632,7]
[391757360,1760784632549,-500.0,0.00031632,7]
[391757361,1760784632558,-500.0,0.00031632,7]
[391757362,1760784632568,-537.8,0.00031632,7]
[391757363,1760784632578,-298.26089446,0.00031882,2]
[391757364,1760784632588,-220.35121389,0.0003192,2]
[391757365,1760784632597,-9037.04851519,0.00032024,30]
[391757366,1760784632607,-697.21,0.00032046,120]
[391757367,1760784632616,-626.66611489,0.0003219,5]
[391757368,1760784632626,-5000.0,0.0003229,2]
[391757369,1760784632636,-150.54192438,0.000323,2]
[391757370,1760784632646,-1000.0,0.000323,2]
[391757371,1760784632659,-160.77807033,0.000323,4]
[391757372,1760784632668,-211.67235406,0.000323,15]
[391757373,1760784632678,-1473.10369815,0.000323,2]
[391757374,1760784632687,-2407.64761832,0.000323,4]
[391757375,1760784632696,-665.31974085,0.000323,5]
[391757376,1760784632706,-1473.10369812,0.00032318,2]
[391757377,1760784632716,-1473.10369812,0.00032337,2]
[391757378,1760784632725,-500.0,0.00032344,17]
[391757379,1760784632735,-1473.10369812,0.00032355,2]
[391757380,1760784632744,-501.58080759,0.00032373,5]
[391757381,1760784632753,-500.0,0.00032373,5]
[391757382,1760784632763,-500.0,0.00032373,2]
[391757383,1760784632772,-500.0,0.00032373,5]
[391757384,1760784632782,-500.0,0.00032373,5]
[391757385,1760784632791,-500.0,0.00032373,5]
[391757386,1760784632800,-501.49056779,0.00032373,5]
[391757387,1760784632810,-500.59683785,0.00032373,5]
[391757388,1760784632819,-316.53183403,0.00032373,5]
[391757389,1760784632829,-500.0,0.00032373,5]
[391757390,1760784632839,-500.0,0.00032373,5]
[391757391,1760784632849,-1473.10369812,0.00032373,2]
[391757392,1760784632862,-230.22731333,0.0003238,2]
[391757393,1760784632876,-596.60464793,0.0003238,2]
[391757394,1760784632895,-500.00014044,0.0003238,2]
[391757395,1760784632908,-402.0,0.00032384,2]
[391757396,1760784632918,-500.0,0.00032388,17]
[391757397,1760784632928,-319.95081928,0.00032389,17]
[391757398,1760784632938,-150.0,0.0003239,30]
[391757399,1760784632947,-150.0,0.0003239,30]
[391757400,1760784632955,-150.0,0.0003239,30]
[391757401,1760784632965,-150.0,0.0003239,30]
[391757402,1760784632974,-150.0,0.0003239,30]
[391757403,1760784632984,-135.41370794,0.0003239,30]
[391757409,1760784637628,-348.9,0.00032373,2]
[391757410,1760784637640,-151.1,0.00032373,2]
[391757411,1760784637650,-15.58629206,0.0003239,30]
[391757412,1760784637660,-151.0,0.0003239,30]
[391757413,1760784637669,-151.0,0.0003239,30]
[391757414,1760784637679,-151.0,0.0003239,30]
[391757415,1760784637690,-226.831342,0.0003239,30]
[391757416,1760784637700,-151.0,0.0003239,30]
[391757417,1760784637710,-151.0,0.0003239,30]
[391757418,1760784637720,-151.0,0.0003239,30]
[391757419,1760784637731,-151.0,0.0003239,30]
[391757420,1760784637743,-151.0,0.0003239,30]
[391757421,1760784637752,-151.0,0.0003239,30]
[391757422,1760784637762,-222.854431,0.0003239,30]
[391757423,1760784637771,-151.0,0.0003239,30]
[391757424,1760784637780,-151.0,0.0003239,15]
[391757425,1760784637790,-151.0,0.0003239,15]
[391757426,1760784637800,-151.0,0.0003239,30]
[391757427,1760784637810,-151.0,0.0003239,30]
[391757428,1760784637819,-151.0,0.0003239,30]
[391757429,1760784637829,-151.0,0.0003239,30]
[391757430,1760784637839,-151.0,0.0003239,30]
[391757431,1760784637847,-151.0,0.0003239,30]
[391757432,1760784637857,-151.0,0.0003239,30]
[391757433,1760784637866,-151.0,0.0003239,30]
[391757434,1760784637876,-151.0,0.0003239,30]
[391757435,1760784637885,-151.0,0.0003239,30]
[391757436,1760784637894,-152.255797,0.0003239,30]
[391757438,1760784637903,-151.0,0.0003239,30]
[391757440,1760784637913,-151.0,0.0003239,30]
[391757442,1760784637923,-203.90797,0.0003239,30]
[391757444,1760784637932,-151.492516,0.0003239,30]
[391757446,1760784637941,-151.0,0.0003239,30]
[391757447,1760784637950,-203.90797,0.0003239,30]
[391757448,1760784637959,-419.792833,0.0003239,30]
[391757450,1760784637968,-203.90797,0.0003239,30]
[391757452,1760784637977,-419.792833,0.0003239,30]
[391757454,1760784637987,-203.90797,0.0003239,30]
[391757456,1760784637995,-412.8521489,0.0003239,30]
[391757459,1760784638016,-6.9406841,0.0003239,30]
[391757461,1760784638025,-151.0,0.0003239,30]
[391757463,1760784638035,-419.792833,0.0003239,30]
[391757465,1760784638044,-151.0,0.0003239,30]
[391757468,1760784638054,-151.0,0.0003239,30]
[391757471,1760784638063,-243.551082,0.0003239,30]
[391757473,1760784638073,-151.0,0.0003239,30]
[391757476,1760784638083,-150.0,0.0003239,30]
[391757478,1760784638092,-151.0,0.0003239,30]
[391757480,1760784638102,-500.0,0.0003239,30]
[391757482,1760784638111,-150.0,0.0003239,30]
[391757484,1760784638121,-151.0,0.0003239,14]
[391757486,1760784638131,-151.0,0.0003239,30]
[391757488,1760784638140,-151.0,0.0003239,30]
[391757490,1760784638149,-151.0,0.0003239,30]
[391757492,1760784638159,-151.0,0.0003239,30]
[391757494,1760784638168,-152.754799,0.0003239,30]
[391757496,1760784638178,-224.836599,0.0003239,30]
[391757498,1760784638187,-151.0,0.0003239,30]
[391757500,1760784638196,-151.0,0.0003239,30]
[391757502,1760784638206,-151.0,0.0003239,30]
[391757504,1760784638215,-151.0,0.0003239,30]
[391757506,1760784638224,-151.0,0.0003239,30]
[391757526,1760784638233,-151.0,0.0003239,30]
[391757528,1760784638419,-151.0,0.0003239,30]
[391757530,1760784638429,-151.0,0.0003239,30]
[391757532,1760784638439,-151.0,0.0003239,30]
[391757535,1760784638450,-8624.40866105,0.0003239,2]
[391757537,1760784638459,-187.473337,0.0003239,30]
[391757538,1760784638468,-187.473337,0.0003239,30]
[391757541,1760784638478,-150.0,0.0003239,30]
[391757543,1760784638487,-187.473337,0.0003239,30]
[391757545,1760784638497,-187.473337,0.0003239,30]
[391757546,1760784638506,-150.0,0.0003239,30]
[391757549,1760784638516,-150.0,0.0003239,30]
[391757551,1760784638526,-150.0,0.0003239,2]
[391757552,1760784638535,-250.0,0.0003239,30]
[391757554,1760784638545,-150.0,0.0003239,30]
[391757556,1760784638555,-200.0,0.0003239,30]
[391757558,1760784638564,-200.0,0.0003239,30]